fUSD/lending_fUSD_20240412
["ID","MTS","AMOUNT","RATE_DAILY","PERIOD"]
[322354103,1712959763477,-350.20615214,0.000209,2]
[322354104,1712959763498,-2755.78206518,0.000209,2]
[322354105,1712959763521,-209.86645799,0.000209,2]
[322354106,1712959763545,-167.58,0.0002097,2]
[322354107,1712959763569,-167.58,0.0002097,2]
[322354108,1712959763595,-167.58,0.0002097,2]
[322354109,1712959763620,-217.38182733,0.0002097,2]
[322354110,1712959763645,-162.275228,0.00020978,2]
[322354111,1712959763669,-500.0,0.00020978,2]
[322354112,1712959763693,-500.0,0.00020978,2]
[322354113,1712959763718,-500.0,0.00020978,2]
[322354114,1712959763741,-500.0,0.00020978,2]
[322354115,1712959763765,-500.0,0.00020978,2]
[322354116,1712959763791,-430.82205412,0.00020978,2]
[322354117,1712959764057,-154504.58474565,0.00020979,2]
[322354118,1712959764142,329.31,0.0001807,2]
[322354119,1712959764385,-329.31,0.00020334,2]
[322354120,1712959764409,-179034.15,0.00020979,2]
[322354121,1712959770096,-906.20651749,0.00020895,2]
[322354122,1712959770116,-2787.97188251,0.00020979,2]
[322354139,1712959831768,-660.38341904,0.00020879,2]
[322354140,1712959832669,-835.21364132,0.00020879,2]
[322354141,1712959832762,-18847.84963378,0.00020879,2]
[322354142,1712959832776,-1221.49944801,0.00020879,2]
[322354143,1712959832789,-8982.82997581,0.00020879,2]
[322354144,1712959832802,-10053.56004381,0.00020879,2]
[322354145,1712959832817,-1410.2626,0.00020879,2]
[322354146,1712959832881,-56202.21503823,0.00020879,2]
[322354147,1712959832893,-906.20651749,0.00020898,2]
[322354148,1712959832905,-906.20651749,0.000209,2]
[322354154,1712959833138,-392.10578605,0.000209,2]
[322354155,1712959833149,-3833.86146093,0.000209,2]
[322354156,1712959833160,-217.38182733,0.00020969,2]
[322354157,1712959833170,-167.59,0.00020969,2]
[322354158,1712959833180,-167.59,0.00020969,2]
[322354159,1712959833190,-167.59,0.0002097,2]
[322354160,1712959833201,-167.54858951,0.00020977,2]
[322354161,1712959833211,-535.56792221,0.00020978,2]
[322354162,1712959833222,-20388.44649811,0.00020979,2]
[322354163,1712959833236,-572.92685355,0.00020979,2]
[322354164,1712959833257,-271.2999999,0.00020979,2]
[322354179,1712959837716,-2521.79232421,0.00020979,2]
[322354180,1712959837728,-25958.35201202,0.00020979,2]
[322354181,1712959837739,-293.55557731,0.00020979,2]
[322354182,1712959837836,-361.675,0.00020979,2]
[322354183,1712959839246,-11827.7989975,0.00020979,2]
[322354193,1712959839337,-18528.48030701,0.00020979,2]
[322354195,1712959839350,-1336.5,0.00020979,2]
[322354197,1712959839362,-1155.215579,0.00020979,2]
[322354241,1712959839765,-260.02580004,0.00020879,2]
[322354254,1712959839878,-5502.74348465,0.00020879,2]
[322354256,1712959839888,-1942.99422774,0.00020979,2]
[322354258,1712959839899,-4693.7019788,0.00020979,2]
[322354261,1712959839911,-302.08659991,0.00020979,2]
[322354263,1712959839923,-802.2169011,0.00020979,2]
[322354266,1712959839938,-853.616,0.00020979,2]
[322354451,1712959842732,-1257.83340614,0.00020979,2]
[322354452,1712959842899,-1910.0,0.00020979,2]
[322354453,1712959842951,-426.80122921,0.00020979,2]
[322354454,1712959843067,-116558.82551004,0.00020979,2]
[322354455,1712959843124,-4229.70973642,0.00020979,2]
[322354456,1712959843289,-659.549999,0.00020979,2]
[322354457,1712959843345,-1223.94751869,0.00020979,2]
[322354458,1712959843357,-6005.57976687,0.00020979,2]
[322354474,1712959845988,-909.13918387,0.00020881,2]
[322354475,1712959846154,-741.33942584,0.00020881,2]
[322354476,1712959846167,-4112.29067496,0.00020881,2]
[322354477,1712959846177,-34123.04449506,0.00020979,2]
[322354478,1712959846190,-680.44298611,0.00020979,2]
[322354479,1712959846213,-415.93009695,0.00020979,2]
[322354480,1712959846227,-4893.68224422,0.00020979,2]
[322354482,1712960374070,-192.42850161,0.00019877,2]
[322354483,1712960374095,-7585.57149839,0.00019878,2]
[322354484,1712960412157,296.37,0.00017848,2]
[322354485,1712960447063,448.39151807,0.00020795,60]
[322354486,1712960591731,2554.13328289,0.0003,30]
[322354488,1712960831107,-155.3064506,0.00019541,2]
[322354498,1712960927253,281.55,0.00017565,2]
[322354507,1712960947111,-160.79,0.00019499,2]
[322354508,1712960947137,-500.0,0.00019499,3]
[322354509,1712960947162,-94.6935494,0.00019541,2]
[322354510,1712960947184,-162.65193725,0.00019653,2]
[322354511,1712960947206,-265.21823735,0.00019683,2]
[322354514,1712960971293,-19441.94,0.00019573,2]
[322354515,1712960971314,-163.16176265,0.00019683,2]
[322354516,1712960971334,-166.86,0.00019753,2]
[322354517,1712960971355,-162.65193718,0.00019802,2]
[322354518,1712960971375,-281.55,0.00019829,2]
[322354519,1712960971396,-155.58,0.00019839,2]
[322354520,1712960971419,-155.58,0.00019907,2]
[322354521,1712960971440,-162.65193718,0.00019951,2]
[322354522,1712960971460,-10208.97,0.00019951,2]
[322354523,1712960971480,-499.99,0.00019951,2]
[322354524,1712960971499,-155.58,0.00019976,2]
[322354525,1712960971520,-155.58,0.00020045,2]
[322354526,1712960971545,-162.65193718,0.000201,2]
[322354527,1712960971566,-155.58,0.00020114,2]
[322354528,1712960971587,-155.58,0.00020183,2]
[322354529,1712960971608,-162.65193718,0.0002025,2]
[322354530,1712960971629,-155.58,0.00020252,2]
[322354531,1712960971650,-155.58,0.00020321,2]
[322354532,1712960971672,-155.58,0.0002039,2]
[322354533,1712960971692,-162.65193718,0.00020399,2]
[322354534,1712960971715,-155.58,0.00020459,2]
[322354535,1712960971735,-169.8,0.00020509,2]
[322354536,1712960971756,-155.58,0.00020528,2]
[322354537,1712960971777,-162.65193718,0.00020548,2]
[322354538,1712960971798,-150.0,0.00020567,2]
[322354539,1712960971817,-155.58,0.00020597,2]
[322354540,1712960971837,-155.58,0.00020666,2]
[322354541,1712960971857,-162.65193718,0.00020697,2]
[322354542,1712960971876,-3747.31481115,0.00020697,2]
[322354543,1712960971896,-10641.55586594,0.00020697,2]
[322354561,1712961032024,-302.82852471,0.0002,2]
[322354562,1712961032035,-4933.81862532,0.00020697,2]
[322354563,1712961032046,-163.66595901,0.00020697,2]
[322354564,1712961032055,-179.5,0.00020709,2]
[322354565,1712961032065,-702.40128296,0.00020718,2]
[322354566,1712961032075,-347406.99992218,0.00020719,2]
[322354567,1712961032086,-15575.37449117,0.0002072,2]
[322354568,1712961032095,-163.66595897,0.00020731,2]
[322354569,1712961032104,-155.58,0.00020735,2]
[322354570,1712961032115,-15575.37449117,0.00020742,2]
[322354571,1712961032124,-15575.37449117,0.00020765,2]
[322354572,1712961032134,-163.66595897,0.00020765,2]
[322354573,1712961032143,-179.5,0.00020787,2]
[322354574,1712961032152,-193.09990847,0.00020787,2]
[322354575,1712961032162,-15575.37449117,0.00020787,2]
[322354576,1712961032171,-150.0,0.00020792,2]
[322354577,1712961032181,-192.29590709,0.00020796,2]
[322354578,1712961032191,-3468.196,0.00020797,2]
[322354579,1712961032202,-3817.2553,0.00020797,2]
[322354580,1712961032211,-301462.85480638,0.00020797,2]
[322354581,1712961032225,-679.84698,0.00020797,2]
[322354582,1712961032263,-5660.81429448,0.00020797,2]
[322354583,1712961032275,-4405.88117892,0.00020797,2]
[322354584,1712961032378,-2079.35349562,0.00020797,2]
[322354585,1712961032391,-661.68277074,0.00020797,2]
[322354586,1712961032404,-581.2431773,0.00020797,2]
[322354587,1712961032417,-299.99,0.00020797,2]
[322354588,1712961034648,916.0,0.0003,30]
[322354604,1712961037886,-305.40389219,0.00020796,2]
[322354608,1712961038702,-194.59610781,0.00020796,2]
[322354610,1712961038712,-310.7767174,0.00020796,2]
[322354612,1712961038721,-31988.91419656,0.00020797,2]
[322354614,1712961038732,-61663.4595,0.00020797,2]
[322354616,1712961038741,-7500.0,0.00020797,2]
[322354619,1712961038752,-163.66595897,0.00020799,2]
[322354622,1712961038761,-152.58757774,0.000208,2]
[322354625,1712961038770,-155.58,0.00020804,2]
[322354627,1712961038779,-15575.37449117,0.0002081,2]
[322354629,1712961038789,-249.86513,0.00020822,2]
[322354631,1712961038798,-15575.37449117,0.00020832,2]
[322354633,1712961038807,-163.66595897,0.00020832,2]
[322354635,1712961038817,-152.58757772,0.0002085,2]
[322354638,1712961038829,-15575.37449117,0.00020855,2]
[322354640,1712961038840,-163.66595897,0.00020866,2]
[322354642,1712961038848,-155.58,0.00020872,2]
[322354643,1712961038858,-15575.37449117,0.00020877,2]
[322354646,1712961038867,-335.3346,0.00020878,2]
[322354647,1712961038876,-1000.0,0.00020898,2]
[322354649,1712961038885,-15575.37449117,0.000209,2]
[322354651,1712961038894,-163.66595897,0.000209,2]
[322354653,1712961038903,-152.58757772,0.000209,2]
[322354655,1712961038913,-179.5,0.00020969,2]
[322354657,1712961038922,-179.5,0.00020969,2]
[322354659,1712961038931,-179.5,0.0002097,2]
[322354661,1712961038940,-3770.25667115,0.00020977,2]
[322354663,1712961038950,-253.7136866,0.00020977,2]
[322354665,1712961038959,-899072.24838098,0.00020979,2]
[322354667,1712961038968,-1038.04438346,0.00020979,2]
[322354669,1712961038977,-2000.0,0.00020979,2]
[322354671,1712961038986,-200.0,0.00020979,2]
[322354674,1712961038996,-2000.0,0.00020979,2]
[322354676,1712961039006,-200.0,0.00020979,2]
[322354678,1712961039015,-500.0,0.00020979,2]
[322354680,1712961039025,-353.57578686,0.00020979,2]
[322354682,1712961039034,-500.0,0.00020979,2]
[322354684,1712961039043,-500.0,0.00020979,2]
[322354686,1712961039052,-500.0,0.00020979,2]
[322354688,1712961039062,-500.0,0.00020979,2]
[322354689,1712961039070,-413.40395813,0.00020979,2]
[322354691,1712961039080,-500.0,0.00020979,2]
[322354693,1712961039089,-500.0,0.00020979,2]
[322354695,1712961039099,-500.0,0.00020979,2]
[322354697,1712961039108,-500.0,0.00020979,2]
[322354699,1712961039117,-500.0,0.00020979,2]
[322354701,1712961039126,-500.0,0.00020979,2]
[322354703,1712961039135,-500.0,0.00020979,2]
[322354705,1712961039145,-380.47118416,0.00020979,2]
[322354706,1712961039153,-500.0,0.00020979,2]
[322354708,1712961039162,-500.0,0.00020979,2]
[322354710,1712961039171,-500.0,0.00020979,2]
[322354711,1712961039180,-500.0,0.00020979,2]
[322354713,1712961039191,-500.0,0.00020979,2]
[322354716,1712961039201,-500.0,0.00020979,2]
[322354719,1712961039209,-500.0,0.00020979,2]
[322354722,1712961039219,-500.0,0.00020979,2]
[322354725,1712961039229,-500.0,0.00020979,2]
[322354727,1712961039238,-366275.97616018,0.0002098,2]
[322354731,1712961039250,-20814.50604651,0.0002098,2]
[322354734,1712961039279,-1885.59399063,0.0002098,2]
[322354736,1712961039290,-599.29142976,0.0002098,2]
[322354739,1712961039301,-3357.75,0.0002098,2]
[322354743,1712961039341,-1e-08,0.0002098,2]
[322354745,1712961039352,-1054.91966149,0.0002098,2]
[322354747,1712961039363,-262470.9704086,0.0002098,2]
[322354813,1712961040022,-0.10148717,0.0002098,2]
[322354816,1712961040035,-451.55806917,0.0002098,2]
[322354843,1712961040324,-418.43712399,0.0002098,2]
[322354845,1712961040336,-3284.54187124,0.0002098,2]
[322354850,1712961040384,-389.89995286,0.0002098,2]
[322354852,1712961040399,-328474.28826993,0.0002098,2]
[322354919,1712961043032,-2739.67292911,0.00020795,2]
[322354920,1712961043041,-2950.50595653,0.0002098,2]
[322354921,1712961043053,-43008.13910626,0.0002098,2]
[322354922,1712961043062,-193.09990847,0.0002099,2]
[322354923,1712961043071,-1436748.62470056,0.00021,2]
[322354924,1712961043253,-2574.65314172,0.00021,2]
[322354925,1712961043330,-2898.67779042,0.00021,2]
[322354926,1712961043342,-11830.42069095,0.00021,2]
[322354930,1712961046119,-335.27295591,0.00021,2]
[322354931,1712961046131,-4808.15063321,0.00021,2]
[322354932,1712961046192,-5647.41679643,0.00021,2]
[322354933,1712961046250,-1881.51676376,0.00021,2]
[322354934,1712961046362,-430.98449543,0.00021,2]
[322354935,1712961373825,804.82994582,0.0003,30]
[322354936,1712961404023,390.48,0.00017779,2]
[322354937,1712961875872,1469.9454696,0.00017779,2]
[322354938,1712961885149,1323.52048471,0.00017779,2]
[322354939,1712961906298,370.95,0.0001738,2]
[322354940,1712961913473,364.99752473,0.00017779,2]
[322354941,1712961959105,-330.60516105,0.00019196,2]
[322354942,1712962107511,179.32336699,0.00018902,2]
[322354943,1712962112796,192.42850161,0.00018999,2]
[322354944,1712962126236,1860.620496,0.00018905,2]
[322354950,1712962156350,-155.0,0.00019,2]
[322354951,1712962156372,-3160.92864505,0.00019001,2]
[322354952,1712962156391,-202.05,0.00019149,2]
[322354953,1712962156411,-169.39483895,0.00019196,2]
[322354954,1712962156432,-5230.91,0.00019233,2]
[322354955,1712962156452,-1905.51,0.00019236,2]
[322354956,1712962156472,-500.0,0.00019271,2]
[322354957,1712962156492,-788.6,0.00019276,2]
[322354958,1712962156513,-1000.0,0.00019285,2]
[322354959,1712962156534,-150.0,0.00019339,2]
[322354960,1712962156555,-733.16697577,0.0001934,2]
[322354961,1712962161177,-258.63066327,0.0001934,2]
[322354962,1712962163280,-22908.20236096,0.0001934,2]
[322354963,1712962163302,-150.0,0.00019363,2]
[322354964,1712962163323,-775.52,0.00019364,2]
[322354965,1712962163344,-500.0,0.00019364,3]
[322354966,1712962163365,-1074.04,0.00019364,2]
[322354967,1712962163386,-3801.28,0.00019364,2]
[322354968,1712962163405,-1075.83,0.00019368,2]
[322354969,1712962163426,-436.59,0.00019373,2]
[322354970,1712962163446,-200.0,0.00019381,2]
[322354971,1712962163466,-250.0,0.00019386,2]
[322354972,1712962163486,-9226.12,0.00019392,2]
[322354973,1712962163507,-370.95,0.00019643,2]
[322354974,1712962163526,-1.86430954,0.00019649,2]
[322354975,1712962170442,-2297.20569046,0.00019649,2]
[322354976,1712962170462,-6605.5747398,0.00019698,2]
[322354977,1712962170483,-169.47,0.00019733,2]
[322354978,1712962170503,-2338.17,0.00019733,2]
[322354979,1712962170523,-1278.01351971,0.00019758,2]
[322354980,1712962170543,-174.54,0.00019772,2]
[322354981,1712962170563,-836.06,0.00019783,2]
[322354982,1712962170582,-499.99,0.00019846,2]
[322354983,1712962170602,-2712.68343769,0.0002,2]
[322354984,1712962170622,-19156.6,0.00020028,2]
[322354985,1712962170641,-167.29,0.00020376,2]
[322354986,1712962170661,-151.02,0.00020491,2]
[322354987,1712962170685,-151.02,0.00020508,2]
[322354988,1712962170707,-151.02,0.00020525,2]
[322354989,1712962170918,-151.02,0.00020542,2]
[322354990,1712962170938,-151.02,0.00020559,2]
[322354991,1712962170958,-2803.52522286,0.00020576,2]
[322354992,1712962170980,-151.02,0.00020576,2]
[322354993,1712962171000,-151.02,0.00020593,2]
[322354994,1712962171020,-415.08387455,0.00020609,2]
[322354995,1712962171040,-37497.8579,0.00020619,2]
[322354996,1712962171060,-3964.39756809,0.00020619,2]
[322355003,1712962232232,-157.15,0.00019972,2]
[322355004,1712962232242,-157.15,0.00020052,2]
[322355005,1712962232251,-157.15,0.00020132,2]
[322355006,1712962232260,-157.15,0.00020212,2]
[322355007,1712962232271,-157.15,0.00020292,2]
[322355008,1712962232280,-157.15,0.00020372,2]
[322355009,1712962232289,-157.15,0.00020452,2]
[322355010,1712962232298,-157.15,0.00020532,2]
[322355011,1712962232307,-224.878617,0.00020548,2]
[322355012,1712962232317,-157.15,0.00020613,2]
[322355013,1712962232326,-9671.55913191,0.00020619,2]
[322355014,1712962232336,-556.9682,0.00020619,2]
[322355015,1712962232346,-157.15,0.00020693,2]
[322355016,1712962232357,-1000.0,0.000207,2]
[322355017,1712962232366,-2500.0,0.000207,2]
[322355018,1712962232376,-3870.7702686,0.00020719,2]
[322355019,1712962232385,-3870.77026859,0.00020739,2]
[322355020,1712962232394,-3870.77026859,0.00020759,2]
[322355021,1712962232403,-157.15,0.00020773,2]
[322355022,1712962232413,-3870.77026859,0.00020779,2]
[322355023,1712962232422,-415.08387455,0.0002079,2]
[322355024,1712962232431,-415.08387455,0.0002079,2]
[322355025,1712962232441,-2270.44498,0.0002079,2]
[322355026,1712962232450,-228.14691918,0.00020797,2]
[322355027,1712962232459,-155.0,0.00020798,2]
[322355028,1712962232469,-306.82378869,0.00020798,2]
[322355029,1712962232478,-3870.77026859,0.00020799,2]
[322355030,1712962232487,-33049.54990788,0.000208,2]
[322355031,1712962232499,-1249.96102432,0.000208,2]
[322355032,1712962232570,-8446.6,0.000208,2]
[322355033,1712962232583,-138751.6510678,0.000208,2]
[322355034,1712962232593,-3870.77026859,0.0002082,2]
[322355035,1712962232602,-228.14691918,0.00020822,2]
[322355036,1712962232611,-3870.77026859,0.0002084,2]
[322355037,1712962232621,-352.44244789,0.00020846,2]
[322355038,1712962232630,-173.4,0.00020847,2]
[322355039,1712962232639,-228.14691918,0.00020848,2]
[322355040,1712962232648,-157.15,0.00020853,2]
[322355041,1712962232658,-3870.77026859,0.0002086,2]
[322355042,1712962232666,-352.44244789,0.00020873,2]
[322355043,1712962232675,-228.14691918,0.00020874,2]
[322355044,1712962232684,-3870.77026859,0.0002088,2]
[322355045,1712962232693,-513.78160399,0.00020896,2]
[322355046,1712962232703,-3358.9298,0.00020899,2]
[322355047,1712962232711,-1347.26009901,0.00020899,2]
[322355048,1712962232721,-206.35448214,0.00020899,2]
[322355049,1712962232730,-1347.26009899,0.00020899,2]
[322355050,1712962232739,-1347.26009899,0.00020899,2]
[322355051,1712962232748,-1347.26009899,0.00020899,2]
[322355052,1712962232758,-1347.26009899,0.00020899,2]
[322355053,1712962232768,-1347.26009899,0.00020899,2]
[322355054,1712962232777,-1347.26009899,0.000209,2]
[322355055,1712962232786,-1347.26009899,0.000209,2]
[322355056,1712962232796,-1347.26009899,0.000209,2]
[322355057,1712962232805,-1347.26009899,0.000209,2]
[322355058,1712962232814,-1347.26009899,0.000209,2]
[322355059,1712962232824,-1435.975,0.000209,2]
[322355060,1712962232833,-22725.5265712,0.000209,2]
[322355061,1712962232911,-3541.65688029,0.000209,2]
[322355062,1712962232923,-613.58349975,0.000209,2]
[322355063,1712962232935,-3481.8,0.000209,2]
[322355081,1712962238696,-1121.42786468,0.000209,2]
[322355085,1712962238710,-656.79293107,0.000209,2]
[322355135,1712962239231,-145671.11645301,0.000209,2]
[322355138,1712962239241,-173.72120902,0.000209,2]
[322355141,1712962239252,-352.44244789,0.000209,2]
[322355143,1712962239262,-1347.26009899,0.000209,2]
[322355145,1712962239271,-3870.77026859,0.000209,2]
[322355147,1712962239281,-228.14691918,0.000209,2]
[322355149,1712962239291,-1305.23509718,0.000209,3]
[322355151,1712962239301,-196.29351168,0.000209,2]
[322355153,1712962239311,-305.62329712,0.000209,2]
[322355155,1712962239321,-157.15,0.00020933,2]
[322355157,1712962239330,-162.45533147,0.00020986,2]
[322355159,1712962239340,-262.52210611,0.0002099,2]
[322355161,1712962239351,-4395.1460451,0.00020997,2]
[322355163,1712962239365,-276.04485638,0.00020997,2]
[322355165,1712962239375,-19460.06407151,0.00020997,2]
[322355168,1712962239385,-260.52629873,0.00020998,2]
[322355170,1712962239395,-3769.17811368,0.00020998,2]
[322355172,1712962239405,-707.724,0.00020999,2]
[322355174,1712962239414,-354998.19834212,0.00020999,2]
[322355176,1712962239424,-500.0,0.00020999,2]
[322355178,1712962239434,-424.02118744,0.00020999,2]
[322355180,1712962239443,-500.0,0.00020999,2]
[322355182,1712962239452,-500.0,0.00020999,2]
[322355184,1712962239463,-500.0,0.00020999,2]
[322355186,1712962239473,-500.0,0.00020999,2]
[322355188,1712962239482,-464.14135524,0.00020999,2]
[322355190,1712962239492,-212882.72941449,0.00021,2]
[322355239,1712962239958,-15468.82300623,0.00021,2]
[322355241,1712962239970,-1517.91063729,0.00021,2]
[322355244,1712962239983,-3352.3035528,0.00021,2]
[322355249,1712962240025,-7094.60000001,0.00021,2]
[322355295,1712962240451,-6137.17059908,0.00021,2]
[322355298,1712962240473,-3053.02187866,0.00021,2]
[322355301,1712962240485,-1766.78117,0.00021,2]
[322355305,1712962240515,-20872.22612287,0.00021,2]
[322355667,1712962244261,-318.63056666,0.000208,2]
[322355669,1712962244271,-6103.4587385,0.00020998,2]
[322355671,1712962244280,-1945430.6319582,0.00021,2]
[322355674,1712962244293,-482607.8213685,0.00021,2]
[322355676,1712962244306,-176968.01909445,0.00021,2]
[322355679,1712962244323,-478.70000222,0.00021,2]
[322355774,1712962245304,-155.0,0.00020999,2]
[322355776,1712962245314,-1704.69217662,0.00021,2]
[322355778,1712962245326,-1174.41660826,0.00021,2]
[322355780,1712962245338,-2990.5102796,0.00021,2]
[322355877,1712962246213,-3546.8,0.00021,2]
[322355890,1712962246329,-4627.04625297,0.00021,2]
[322355892,1712962246340,-580.84,0.00021,2]
[322355927,1712962246689,-92.4896586,0.00021,2]
[322355928,1712962246701,-587807.42417917,0.00021,2]
[322356652,1712962385676,29232.02359258,0.000189,2]
[322356653,1712962386744,515.69,0.00018885,2]
[322356654,1712962404364,576.22794651,0.0003,30]
[322356655,1712962503206,150.5,0.0002099,15]
[322356656,1712962503245,154.14,0.0002099,15]
[322356657,1712962503294,150.5,0.0002099,15]
[322356658,1712962503352,150.5,0.0002099,15]
[322356659,1712962503488,241.5,0.0002099,15]
[322356660,1712962503522,150.87,0.0002099,15]
[322356661,1712962503671,150.5,0.0002098,15]
[322356662,1712962503777,150.5,0.0002099,15]
[322356663,1712962503823,209.87,0.0002099,15]
[322356664,1712962503858,150.5,0.0002098,15]
[322356668,1712962848928,786.06,0.00017224,2]
[322356669,1712963003318,1652.31854672,0.00018999,2]
[322356670,1712963004459,525.85134183,0.00018999,2]
[322356671,1712963007820,1781.24322271,0.00018999,2]
[322356672,1712963009040,155.0,0.00018999,2]
[322356673,1712963037587,161.98617853,0.00018903,2]
[322356674,1712963094259,903.70835162,0.00019,2]
[322356675,1712963155107,-321.26,0.00019001,2]
[322356676,1712963155128,-155.0,0.00019002,2]
[322356677,1712963155150,-150.0,0.00019003,2]
[322356678,1712963155171,-155.64453658,0.00019004,2]
[322356679,1712963281785,150.0,0.00018966,2]
[322356680,1712963360334,-150.0,0.00019003,2]
[322356681,1712963360356,-23744.35546342,0.00019004,2]
[322356682,1712963360376,-500.0,0.00019009,2]
[322356683,1712963360396,-638.05,0.00019015,2]
[322356684,1712963360418,-800.0,0.0001902,2]
[322356685,1712963360437,-2763.14,0.00019053,2]
[322356686,1712963360457,-200.0,0.00019058,2]
[322356687,1712963360477,-173.07,0.00019083,2]
[322356688,1712963360496,-250.0,0.00019117,2]
[322356689,1712963360516,-157.15,0.0001917,2]
[322356690,1712963360536,-786.06,0.00019487,2]
[322356691,1712963360555,-200.0,0.00019621,2]
[322356692,1712963360575,-499.99,0.00019621,2]
[322356693,1712963360595,-3077.21,0.00019624,2]
[322356694,1712963360616,-161.98617853,0.00019841,2]
[322356695,1712963360636,-171.1101894,0.00019841,2]
[322356696,1712963360656,-1850.66756212,0.00019841,2]
[322356697,1712963360676,-166.00416305,0.00019841,2]
[322356698,1712963360698,-2593.79326433,0.00019841,2]
[322356706,1712963432344,-295.6768142,0.00019003,2]
[322356708,1712963432358,-716.59388063,0.00019003,2]
[322356711,1712963432370,-768.97252788,0.00019003,2]
[322356712,1712963432381,-250.0,0.0001957,2]
[322356713,1712963432390,-163.48992898,0.00019841,2]
[322356714,1712963432399,-318.2803752,0.00019841,2]
[322356715,1712963432409,-295.0088,0.00019841,2]
[322356716,1712963432418,-154.62,0.00019931,2]
[322356717,1712963432428,-154.62,0.00019932,2]
[322356718,1712963432440,-552.08868144,0.00019939,2]
[322356719,1712963432668,-2.60373674,0.00019939,2]
[322356720,1712963432677,-230.85150983,0.00019939,2]
[322356721,1712963432687,-1130.28924325,0.0001994,2]
[322356729,1712963438275,-327.4770171,0.0001994,2]
[322356730,1712963438285,-155.0,0.0001994,2]
[322356731,1712963438294,-1026.63983354,0.00019941,2]
[322356732,1712963438658,-711.47935316,0.00019941,2]
[322356734,1712963438670,-4223.3374018,0.00019941,2]
[322356749,1712963438857,-1171.45667748,0.00019941,2]
[322356788,1712963439208,-320.0,0.00019941,2]
[322356789,1712963439220,-521132.81432968,0.00019941,2]
[322356790,1712963439230,-151.381556,0.00019941,2]
[322356791,1712963439239,-358468.24834212,0.00019942,2]
[322356792,1712963439248,-1841.38011379,0.00019944,2]
[322356793,1712963439258,-55290.08191898,0.00019945,2]
[322356794,1712963439267,-289.04246357,0.00019948,2]
[322356795,1712963439277,-154.62,0.00019949,2]
[322356796,1712963439287,-1850.66756211,0.00019959,2]
[322356797,1712963439296,-2757.2831933,0.00019959,2]
[322356798,1712963439305,-1045.93755107,0.0002,2]
[322356799,1712963439314,-1850.66756211,0.00020076,2]
[322356800,1712963439324,-2757.2831933,0.00020076,2]
[322356801,1712963439334,-318.28037519,0.00020106,2]
[322356802,1712963439343,-206.35448214,0.00020182,2]
[322356803,1712963439352,-171.1101894,0.00020194,2]
[322356804,1712963439361,-1850.66756211,0.00020194,2]
[322356805,1712963439370,-2757.2831933,0.00020194,2]
[322356806,1712963439380,-5235.38532749,0.00020212,2]
[322356807,1712963439389,-5235.38532739,0.00020275,2]
[322356808,1712963439398,-1850.66756211,0.00020312,2]
[322356809,1712963439407,-2757.2831933,0.00020312,2]
[322356810,1712963439416,-5235.38532739,0.00020337,2]
[322356811,1712963439425,-318.28037519,0.00020371,2]
[322356812,1712963439435,-5235.38532739,0.000204,2]
[322356813,1712963439447,-1850.66756211,0.00020429,2]
[322356814,1712963439457,-2757.2831933,0.00020429,2]
[322356815,1712963439466,-153.70002981,0.00020447,2]
[322356816,1712963439476,-266.66,0.00020453,2]
[322356817,1712963439486,-787.0,0.00020454,2]
[322356818,1712963439495,-5235.38532739,0.00020462,2]
[322356819,1712963439505,-3020.09676127,0.00020493,2]
[322356820,1712963439514,-1412.49154549,0.00020516,2]
[322356821,1712963439525,-5235.38532739,0.00020525,2]
[322356822,1712963439534,-171.1101894,0.00020547,2]
[322356823,1712963439543,-1850.66756211,0.00020547,2]
[322356824,1712963439552,-2757.2831933,0.00020547,2]
[322356825,1712963439561,-379.506963,0.00020548,2]
[322356826,1712963439571,-153.70002979,0.0002056,2]
[322356827,1712963439580,-3020.09676127,0.00020575,2]
[322356828,1712963439589,-1412.49154549,0.00020581,2]